fUSD/lending_fUSD_20250219
["ID","MTS","AMOUNT","RATE_DAILY","PERIOD"]
[353672457,1739987296126,-500.0,0.00010958,2]
[353672458,1739987296150,-500.0,0.00010958,2]
[353672459,1739987296174,-500.0,0.00010958,2]
[353672460,1739987296197,-500.0,0.00010958,2]
[353672461,1739987296224,-337.48725919,0.00010958,2]
[353672462,1739987305063,-162.51274081,0.00010958,2]
[353672463,1739987305089,-500.0,0.00010958,2]
[353672464,1739987305115,-500.0,0.00010958,2]
[353672465,1739987305146,-500.0,0.00010958,2]
[353672466,1739987305171,-500.0,0.00010958,2]
[353672467,1739987305195,-500.0,0.00010958,2]
[353672468,1739987305222,-500.0,0.00010958,2]
[353672469,1739987305247,-500.0,0.00010958,2]
[353672470,1739987305273,-500.0,0.00010958,2]
[353672471,1739987305297,-421.61508077,0.00010958,2]
[353672472,1739987305322,-500.0,0.00010958,2]
[353672473,1739987305345,-504.02850639,0.00010958,2]
[353672474,1739987305369,-500.0,0.00010958,2]
[353672475,1739987305395,-500.0,0.00010958,2]
[353672476,1739987305421,-500.28385888,0.00010958,2]
[353672477,1739987305446,-500.0,0.00010958,2]
[353672478,1739987305470,-536.59893837,0.00010958,2]
[353672479,1739987305497,-500.0,0.00010958,2]
[353672480,1739987305523,-500.0,0.00010958,2]
[353672481,1739987305548,-500.0,0.00010958,2]
[353672482,1739987305573,-630.26,0.00010958,2]
[353672483,1739987305597,-500.15198573,0.00010958,2]
[353672484,1739987305621,-500.0,0.00010958,2]
[353672485,1739987305647,-500.0,0.00010958,2]
[353672486,1739987305671,-500.0,0.00010958,2]
[353672487,1739987305696,-503.6453496,0.00010958,2]
[353672488,1739987305720,-500.0,0.00010958,2]
[353672489,1739987305745,-500.0,0.00010958,2]
[353672490,1739987305769,-500.0,0.00010958,2]
[353672491,1739987305795,-500.0,0.00010958,2]
[353672492,1739987305818,-500.0,0.00010958,2]
[353672493,1739987305842,-500.0,0.00010958,2]
[353672494,1739987305866,-500.0,0.00010958,2]
[353672495,1739987305891,-500.0,0.00010958,2]
[353672496,1739987305915,-500.0,0.00010958,2]
[353672497,1739987305940,-500.0,0.00010958,2]
[353672498,1739987305965,-500.0,0.00010958,2]
[353672499,1739987305989,-500.0,0.00010958,2]
[353672500,1739987306014,-500.0,0.00010958,2]
[353672501,1739987306038,-500.0,0.00010958,2]
[353672502,1739987306062,-500.0,0.00010958,2]
[353672503,1739987306087,-506.52901327,0.00010958,2]
[353672504,1739987306113,-500.0,0.00010958,2]
[353672505,1739987306137,-500.0,0.00010958,2]
[353672506,1739987306163,-500.0,0.00010958,2]
[353672507,1739987306188,-500.0,0.00010958,2]
[353672508,1739987306216,-500.0,0.00010958,2]
[353672509,1739987306244,-554.97,0.00010958,2]
[353672510,1739987306272,-500.0,0.00010958,2]
[353672511,1739987306299,-500.0,0.00010958,2]
[353672512,1739987306324,-500.0,0.00010958,2]
[353672513,1739987306349,-500.0,0.00010958,2]
[353672514,1739987306373,-500.0,0.00010958,2]
[353672515,1739987306398,-500.39106564,0.00010958,2]
[353672516,1739987306422,-500.0,0.00010958,2]
[353672517,1739987306447,-500.0,0.00010958,2]
[353672518,1739987306472,-601.83,0.00010958,2]
[353672519,1739987306496,-500.0,0.00010958,2]
[353672520,1739987306519,-500.0,0.00010958,2]
[353672521,1739987306543,-500.0,0.00010958,2]
[353672522,1739987306567,-500.0,0.00010958,2]
[353672523,1739987306592,-500.0,0.00010958,2]
[353672524,1739987306617,-500.0,0.00010958,2]
[353672525,1739987306645,-636.61,0.00010958,2]
[353672526,1739987306672,-500.0,0.00010958,2]
[353672527,1739987306697,-500.0,0.00010958,2]
[353672528,1739987306722,-500.0,0.00010958,2]
[353672529,1739987306746,-500.0,0.00010958,2]
[353672530,1739987306770,-500.0,0.00010958,2]
[353672531,1739987306795,-501.16456505,0.00010958,2]
[353672532,1739987306819,-515.49459181,0.00010958,2]
[353672533,1739987306843,-500.0,0.00010958,2]
[353672534,1739987307068,-500.0,0.00010958,2]
[353672535,1739987307098,-500.0,0.00010958,2]
[353672536,1739987307123,-501.4045221,0.00010958,2]
[353672537,1739987307149,-500.0,0.00010958,2]
[353672538,1739987307175,-500.0,0.00010958,2]
[353672539,1739987307200,-540.32,0.00010958,2]
[353672540,1739987307229,-500.0,0.00010958,2]
[353672541,1739987307255,-500.0,0.00010958,2]
[353672542,1739987307281,-500.0,0.00010958,2]
[353672543,1739987307308,-500.0,0.00010958,2]
[353672544,1739987307334,-500.0,0.00010958,2]
[353672545,1739987307358,-500.0,0.00010958,2]
[353672546,1739987307383,-500.0,0.00010958,2]
[353672547,1739987307406,-500.0,0.00010958,2]
[353672548,1739987307432,-500.0,0.00010958,2]
[353672549,1739987307456,-562.89,0.00010958,2]
[353672550,1739987307481,-500.0,0.00010958,2]
[353672551,1739987307510,-500.0,0.00010958,2]
[353672552,1739987307534,-500.0,0.00010958,2]
[353672553,1739987307559,-500.0,0.00010958,2]
[353672554,1739987307583,-500.0,0.00010958,2]
[353672555,1739987307607,-500.0,0.00010958,2]
[353672556,1739987307633,-500.0,0.00010958,2]
[353672557,1739987307657,-500.0,0.00010958,2]
[353672558,1739987307681,-500.0,0.00010958,2]
[353672559,1739987307706,-500.0,0.00010958,2]
[353672560,1739987307731,-813.48,0.00010958,2]
[353672561,1739987307758,-5.81978158,0.00010958,2]
[353672562,1739987324376,-3926.33,0.00010549,2]
[353672563,1739987324402,-1253.43021842,0.00010958,2]
[353672564,1739987324426,-500.0,0.00010958,2]
[353672565,1739987324450,-722.46,0.00010958,2]
[353672566,1739987324474,-1116.18,0.00010958,2]
[353672567,1739987324498,-500.0,0.00010958,2]
[353672568,1739987324522,-500.0,0.00010958,2]
[353672569,1739987324546,-500.0,0.00010958,2]
[353672570,1739987324569,-783.79,0.00010958,2]
[353672571,1739987324594,-500.0,0.00010958,2]
[353672572,1739987324617,-500.0,0.00010958,2]
[353672573,1739987324640,-500.0,0.00010958,2]
[353672574,1739987324663,-500.0,0.00010958,2]
[353672575,1739987324687,-500.0,0.00010958,2]
[353672576,1739987324714,-1001.38,0.00010958,2]
[353672577,1739987324738,-1061.37,0.00010958,2]
[353672578,1739987324763,-500.0,0.00010958,2]
[353672579,1739987324787,-500.0,0.00010958,2]
[353672580,1739987324811,-772.23,0.00010958,2]
[353672581,1739987324836,-1111.89,0.00010958,2]
[353672582,1739987324860,-500.0,0.00010958,2]
[353672583,1739987324885,-894.25,0.00010958,2]
[353672584,1739987324908,-1129.31,0.00010958,2]
[353672585,1739987324932,-507.96821163,0.00010958,2]
[353672586,1739987324957,-500.0,0.00010958,2]
[353672587,1739987324981,-500.0,0.00010958,2]
[353672588,1739987325006,-500.0,0.00010958,2]
[353672589,1739987325030,-1066.3,0.00010958,2]
[353672590,1739987325057,-866.47,0.00010958,2]
[353672591,1739987325081,-500.0,0.00010958,2]
[353672592,1739987325106,-1207.63,0.00010958,2]
[353672593,1739987325131,-994.81,0.00010958,2]
[353672594,1739987325156,-500.0,0.00010958,2]
[353672595,1739987325181,-523.8,0.00010958,2]
[353672596,1739987325205,-331.57464305,0.00010958,2]
[353672597,1739987325232,-1475.98,0.00010958,2]
[353672598,1739987325258,-752.8469269,0.00010958,2]
[353672604,1739987432067,-233.82,0.00010376,2]
[353672605,1739987432076,-25.89141455,0.00010957,2]
[353672606,1739987432089,-274.10858545,0.00010957,2]
[353672607,1739987432098,-500.0,0.00010958,2]
[353672608,1739987432108,-500.0,0.00010958,2]
[353672609,1739987432117,-707.46,0.00010958,2]
[353672610,1739987432127,-500.0,0.00010958,2]
[353672611,1739987432136,-973.42,0.00010958,2]
[353672612,1739987432146,-500.0,0.00010958,2]
[353672613,1739987432155,-500.0,0.00010958,2]
[353672614,1739987432165,-673.44575175,0.00010958,2]
[353672615,1739987432184,-1035.12424825,0.00010958,2]
[353672616,1739987432193,-166.91143923,0.00010958,2]
[353672617,1739987432205,-333.08856077,0.00010958,2]
[353672618,1739987432214,-94.25184821,0.00010958,2]
[353672619,1739987432226,-405.74815179,0.00010958,2]
[353672620,1739987432236,-500.0,0.00010958,2]
[353672621,1739987432245,-758.41,0.00010958,2]
[353672622,1739987432255,-1016.97956139,0.00010958,2]
[353672623,1739987432268,-38.57043861,0.00010958,2]
[353672624,1739987432277,-500.0,0.00010958,2]
[353672625,1739987432287,-943.78,0.00010958,2]
[353672626,1739987432295,-500.0,0.00010958,2]
[353672627,1739987432304,-500.0,0.00010958,2]
[353672628,1739987432314,-500.0,0.00010958,2]
[353672629,1739987432323,-793.53,0.00010958,2]
[353672630,1739987432333,-829.08,0.00010958,2]
[353672631,1739987432342,-500.0,0.00010958,2]
[353672632,1739987432351,-500.0,0.00010958,2]
[353672633,1739987432361,-628.54,0.00010958,2]
[353672634,1739987432370,-673.29,0.00010958,2]
[353672635,1739987432379,-585.45,0.00010958,2]
[353672636,1739987432388,-104.53068143,0.00010958,2]
[353672637,1739987432399,-464.98931857,0.00010958,2]
[353672638,1739987432408,-500.0,0.00010958,2]
[353672639,1739987432416,-2481.22339882,0.00010958,2]
[353672640,1739987432463,-1250.96724705,0.00010958,2]
[353672643,1739987432519,-925.47970214,0.00010958,2]
[353672645,1739987432534,-765.41855229,0.00010958,2]
[353672649,1739987432567,-2047.4117417,0.00010958,2]
[353672650,1739987432576,-368.6882583,0.00010958,2]
[353672819,1739987438205,-336.88287636,0.00010941,2]
[353672820,1739987438215,-131.3117417,0.00010958,2]
[353672821,1739987438225,-551.33,0.00010958,2]
[353672822,1739987438235,-241.012672,0.00010958,2]
[353672823,1739987438244,-500.0,0.00010958,2]
[353672824,1739987438254,-500.0,0.00010958,2]
[353672825,1739987438265,-1188.83,0.00010958,2]
[353672826,1739987438277,-500.0,0.00010958,2]
[353672827,1739987438288,-500.0,0.00010958,2]
[353672828,1739987438297,-788.62,0.00010958,2]
[353672829,1739987438307,-1971.73,0.00010958,2]
[353672830,1739987438317,-500.0,0.00010958,2]
[353672831,1739987438327,-672.32,0.00010958,2]
[353672832,1739987438336,-500.0,0.00010958,2]
[353672833,1739987438349,-500.0,0.00010958,2]
[353672834,1739987438359,-500.0,0.00010958,2]
[353672836,1739987438369,-500.0,0.00010958,2]
[353672837,1739987438378,-808.29,0.00010958,2]
[353672840,1739987438388,-500.0,0.00010958,2]
[353672841,1739987438397,-500.0,0.00010958,2]
[353672843,1739987438407,-720.08,0.00010958,2]
[353672845,1739987438417,-533.62300082,0.00010958,2]
[353673018,1739987440187,-32.85699918,0.00010958,2]
[353673020,1739987440196,-500.0,0.00010958,2]
[353673022,1739987440207,-537.26,0.00010958,2]
[353673024,1739987440216,-840.91,0.00010958,2]
[353673026,1739987440225,-517.52,0.00010958,2]
[353673028,1739987440234,-662.15,0.00010958,2]
[353673030,1739987440244,-500.0,0.00010958,2]
[353673032,1739987440253,-1035.82,0.00010958,2]
[353673034,1739987440265,-500.0,0.00010958,2]
[353673036,1739987440279,-1483.43,0.00010958,2]
[353673038,1739987440288,-8580.502287,0.00010958,2]
[353673040,1739987440298,-1154.98,0.00010958,2]
[353673042,1739987440308,-811.37,0.00010958,2]
[353673044,1739987440318,-500.0,0.00010958,2]
[353673046,1739987440327,-896.95,0.00010958,2]
[353673048,1739987440336,-1939.26,0.00010958,2]
[353673049,1739987440347,-954.7,0.00010958,2]
[353673051,1739987440357,-500.0,0.00010958,2]
[353673053,1739987440366,-500.0,0.00010958,2]
[353673055,1739987440376,-1057.93,0.00010958,2]
[353673058,1739987440386,-1081.88,0.00010958,2]
[353673060,1739987440396,-500.0,0.00010958,2]
[353673062,1739987440405,-893.96,0.00010958,2]
[353673064,1739987440415,-500.0,0.00010958,2]
[353673066,1739987440424,-500.0,0.00010958,2]
[353673068,1739987440434,-500.0,0.00010958,2]
[353673070,1739987440444,-1776.36,0.00010958,2]
[353673072,1739987440454,-500.0,0.00010958,2]
[353673074,1739987440464,-500.0,0.00010958,2]
[353673076,1739987440474,-500.0,0.00010958,2]
[353673078,1739987440484,-500.0,0.00010958,2]
[353673080,1739987440494,-349.71723787,0.00010958,2]
[353673082,1739987440504,-1231.15,0.00010958,2]
[353673084,1739987440514,-1082.49,0.00010958,2]
[353673086,1739987440523,-500.0,0.00010958,2]
[353673088,1739987440533,-500.0,0.00010958,2]
[353673090,1739987440543,-500.0,0.00010958,2]
[353673092,1739987440553,-1842.35,0.00010958,2]
[353673094,1739987440563,-500.0,0.00010958,2]
[353673096,1739987440573,-478.99607452,0.00010958,2]
[353673098,1739987440582,-881.03,0.00010958,2]
[353673100,1739987440593,-711.42,0.00010958,2]
[353673102,1739987440603,-500.0,0.00010958,2]
[353673104,1739987440613,-819.54,0.00010958,2]
[353673106,1739987440622,-500.0,0.00010958,2]
[353673108,1739987440632,-500.0,0.00010958,2]
[353673110,1739987440641,-500.0,0.00010958,2]
[353673112,1739987440651,-1127.42,0.00010958,2]
[353673114,1739987440660,-500.0,0.00010958,2]
[353673116,1739987440670,-744.32,0.00010958,2]
[353673118,1739987440679,-500.0,0.00010958,2]
[353673120,1739987440689,-904.15,0.00010958,2]
[353673122,1739987440698,-500.0,0.00010958,2]
[353673124,1739987440707,-500.0,0.00010958,2]
[353673126,1739987440716,-1246.08,0.00010958,2]
[353673128,1739987440726,-1227.92,0.00010958,2]
[353673130,1739987440735,-500.0,0.00010958,2]
[353673132,1739987440746,-500.0,0.00010958,2]
[353673134,1739987440755,-500.0,0.00010958,2]
[353673136,1739987440765,-664.94,0.00010958,2]
[353673138,1739987440775,-1901.67,0.00010958,2]
[353673140,1739987440784,-500.0,0.00010958,2]
[353673142,1739987440794,-1108.43,0.00010958,2]
[353673144,1739987440804,-500.0,0.00010958,2]
[353673146,1739987440814,-500.0,0.00010958,2]
[353673148,1739987440823,-500.0,0.00010958,2]
[353673150,1739987440833,-1901.78,0.00010958,2]
[353673152,1739987440842,-500.0,0.00010958,2]
[353673154,1739987440851,-1290.72,0.00010958,2]
[353673156,1739987440861,-2211.03,0.00010958,2]
[353673158,1739987440870,-500.0,0.00010958,2]
[353673160,1739987440880,-507.48236904,0.00010958,2]
[353673162,1739987440890,-812.42,0.00010958,2]
[353673164,1739987440900,-500.0,0.00010958,2]
[353673166,1739987440909,-500.0,0.00010958,2]
[353673168,1739987440919,-4591.13,0.00010958,2]
[353673170,1739987440928,-500.0,0.00010958,2]
[353673172,1739987440938,-500.0,0.00010958,2]
[353673174,1739987440947,-500.0,0.00010958,2]
[353673176,1739987440957,-1566.76,0.00010958,2]
[353673178,1739987440966,-955.62,0.00010958,2]
[353673180,1739987440976,-500.0,0.00010958,2]
[353673182,1739987440985,-500.0,0.00010958,2]
[353673184,1739987440994,-500.0,0.00010958,2]
[353673186,1739987441004,-496.27350272,0.00010958,2]
[353673188,1739987441014,-1307.0,0.00010958,2]
[353673190,1739987441023,-500.0,0.00010958,2]
[353673192,1739987441033,-1646.83,0.00010958,2]
[353673193,1739987441043,-500.0,0.00010958,2]
[353673195,1739987441052,-882.64,0.00010958,2]
[353673197,1739987441061,-513.95,0.00010958,2]
[353673199,1739987441070,-999.95,0.00010958,2]
[353673201,1739987441079,-1684.83,0.00010958,2]
[353673203,1739987441089,-500.0,0.00010958,2]
[353673206,1739987441100,-1014.56,0.00010958,2]
[353673208,1739987441110,-500.0,0.00010958,2]
[353673210,1739987441120,-500.0,0.00010958,2]
[353673212,1739987441129,-500.0,0.00010958,2]
[353673214,1739987441139,-500.0,0.00010958,2]
[353673216,1739987441148,-500.0,0.00010958,2]
[353673218,1739987441157,-737.79,0.00010958,2]
[353673219,1739987441166,-500.0,0.00010958,2]
[353673222,1739987441175,-500.0,0.00010958,2]
[353673223,1739987441185,-1140.37,0.00010958,2]
[353673225,1739987441194,-500.0,0.00010958,2]
[353673227,1739987441203,-1541.55,0.00010958,2]
[353673229,1739987441213,-500.0,0.00010958,2]
[353673231,1739987441222,-993.33,0.00010958,2]
[353673233,1739987441231,-500.0,0.00010958,2]
[353673235,1739987441240,-752.42,0.00010958,2]
[353673237,1739987441250,-500.0,0.00010958,2]
[353673239,1739987441259,-500.0,0.00010958,2]
[353673241,1739987441272,-500.0,0.00010958,2]
[353673243,1739987441282,-500.0,0.00010958,2]
[353673245,1739987441293,-992.83,0.00010958,2]
[353673247,1739987441303,-500.0,0.00010958,2]
[353673249,1739987441315,-1423.73,0.00010958,2]
[353673251,1739987441324,-1072.75,0.00010958,2]
[353673253,1739987441334,-391.74637532,0.00010958,2]
[353673255,1739987441344,-500.0,0.00010958,2]
[353673257,1739987441353,-500.0,0.00010958,2]
[353673259,1739987441363,-991.44,0.00010958,2]
[353673261,1739987441372,-500.0,0.00010958,2]
[353673263,1739987441382,-734.87,0.00010958,2]
[353673265,1739987441391,-512.04,0.00010958,2]
[353673267,1739987441401,-512.04,0.00010958,2]
[353673269,1739987441410,-512.04,0.00010958,2]
[353673271,1739987441420,-512.04,0.00010958,2]
[353673273,1739987441430,-512.04,0.00010958,2]
[353673275,1739987441440,-512.04,0.00010958,2]
[353673277,1739987441449,-500.0,0.00010958,2]
[353673279,1739987441459,-506.11,0.00010958,2]
[353673281,1739987441468,-660.15,0.00010958,2]
[353673283,1739987441478,-500.0,0.00010958,2]
[353673285,1739987441487,-1154.52,0.00010958,2]
[353673287,1739987441497,-500.0,0.00010958,2]
[353673289,1739987441507,-500.0,0.00010958,2]
[353673291,1739987441516,-705.06,0.00010958,2]
[353673293,1739987441526,-500.0,0.00010958,2]
[353673295,1739987441535,-500.0,0.00010958,2]
[353673297,1739987441544,-840.96,0.00010958,2]
[353673299,1739987441553,-500.0,0.00010958,2]
[353673301,1739987441562,-500.0,0.00010958,2]
[353673303,1739987441572,-500.0,0.00010958,2]
[353673305,1739987441581,-1357.84,0.00010958,2]
[353673307,1739987441591,-500.0,0.00010958,2]
[353673329,1739987441886,-500.0,0.00010958,2]
[353673331,1739987441897,-500.0,0.00010958,2]
[353673334,1739987441907,-728.08,0.00010958,2]
[353673336,1739987441917,-892.41,0.00010958,2]
[353673338,1739987441927,-1054.42,0.00010958,2]
[353673340,1739987441937,-1568.95,0.00010958,2]
[353673341,1739987441947,-671.12,0.00010958,2]
[353673344,1739987441958,-782.68,0.00010958,2]
[353673346,1739987441968,-914.52,0.00010958,2]
[353673347,1739987441977,-500.0,0.00010958,2]
[353673349,1739987441987,-500.0,0.00010958,2]
[353673352,1739987441997,-500.0,0.00010958,2]
[353673354,1739987442007,-1011.45,0.00010958,2]
[353673356,1739987442017,-1072.02,0.00010958,2]
[353673357,1739987442026,-500.0,0.00010958,2]
[353673359,1739987442035,-500.0,0.00010958,2]
[353673361,1739987442045,-500.0,0.00010958,2]
[353673363,1739987442054,-705.13,0.00010958,2]
[353673365,1739987442063,-499.99535576,0.00010958,2]
[353673367,1739987442074,-1437.68,0.00010958,2]
[353673369,1739987442083,-500.0,0.00010958,2]
[353673371,1739987442093,-795.0,0.00010958,2]
[353673373,1739987442103,-1015.54,0.00010958,2]
[353673375,1739987442112,-644.23,0.00010958,2]
[353673377,1739987442122,-1039.88,0.00010958,2]
[353673379,1739987442131,-500.0,0.00010958,2]
[353673381,1739987442140,-151.0,0.00010958,3]
[353673383,1739987442149,-477.0,0.00010958,3]
[353673385,1739987442158,-200.0,0.00010958,2]
[353673387,1739987442166,-500.0,0.00010958,2]
[353673389,1739987442176,-500.0,0.00010958,2]
[353673391,1739987442185,-500.0,0.00010958,2]
[353673392,1739987442194,-500.0,0.00010958,2]
[353673394,1739987442203,-866.14,0.00010958,2]
[353673397,1739987442213,-1003.06,0.00010958,2]
[353673399,1739987442223,-500.0,0.00010958,2]
[353673400,1739987442232,-500.0,0.00010958,2]
[353673403,1739987442243,-530.87,0.00010958,2]
[353673404,1739987442253,-500.0,0.00010958,2]
[353673407,1739987442268,-500.0,0.00010958,2]
[353673409,1739987442279,-1740.48,0.00010958,2]
[353673411,1739987442289,-500.0,0.00010958,2]
[353673413,1739987442299,-500.0,0.00010958,2]
[353673415,1739987442309,-500.0,0.00010958,2]
[353673417,1739987442319,-502.61423243,0.00010958,2]
[353673419,1739987442328,-500.0,0.00010958,2]
[353673421,1739987442338,-538.43991762,0.00010958,2]
[353673423,1739987442349,-500.0,0.00010958,2]
[353673425,1739987442358,-998.3,0.00010958,2]
[353673427,1739987442368,-500.0,0.00010958,2]
[353673429,1739987442378,-500.0,0.00010958,2]
[353673431,1739987442387,-1550.39,0.00010958,2]
[353673433,1739987442396,-3066.13,0.00010958,2]
[353673435,1739987442405,-512.06,0.00010958,2]
[353673437,1739987442415,-500.0,0.00010958,2]
[353673439,1739987442424,-500.0,0.00010958,2]
[353673441,1739987442434,-574.37,0.00010958,2]
[353673443,1739987442444,-500.0,0.00010958,2]
[353673445,1739987442454,-24461.75939143,0.00010958,2]
[353673447,1739987442464,-550.0,0.00011,2]
[353673449,1739987442473,-500.0,0.0001104,2]
[353673451,1739987442483,-932.0,0.0001104,2]
[353673453,1739987442492,-753.25,0.0001104,2]
[353673455,1739987442503,-1074.53,0.0001104,2]
[353673457,1739987442512,-1188.97,0.0001104,2]
[353673459,1739987442521,-500.0,0.0001104,2]
[353673461,1739987442531,-744.25,0.0001104,2]
[353673463,1739987442541,-990.17,0.0001104,2]
[353673465,1739987442551,-1736.87,0.0001104,2]
[353673467,1739987442560,-2335.41,0.0001104,2]
[353673469,1739987442570,-1527.63,0.0001104,2]
[353673471,1739987442579,-1000.0,0.0001104,2]
[353673473,1739987442588,-1821.09,0.0001104,2]
[353673475,1739987442599,-1496.47,0.0001104,2]
[353673477,1739987442609,-1091.01,0.0001104,2]
[353673480,1739987442619,-2442.27,0.0001104,2]
[353673481,1739987442628,-926.03,0.0001104,2]
[353673483,1739987442637,-500.0,0.0001104,2]
[353673485,1739987442647,-1071.28,0.0001104,2]
[353673487,1739987442656,-1230.45,0.0001104,2]
[353673490,1739987442666,-788.39,0.0001104,2]
[353673492,1739987442676,-500.0,0.0001104,2]
[353673494,1739987442687,-1012.93,0.0001104,2]
[353673496,1739987442696,-947.02,0.0001104,2]
[353673498,1739987442706,-1322.03,0.0001104,2]
[353673500,1739987442715,-1118.2,0.0001104,2]
[353673502,1739987442724,-1110.66,0.0001104,2]
[353673504,1739987442734,-500.0,0.0001104,2]
[353673506,1739987442743,-500.0,0.0001104,2]
[353673508,1739987442753,-1462.21,0.0001104,2]
[353673510,1739987442762,-500.0,0.0001104,2]
[353673512,1739987442771,-500.0,0.0001104,2]
[353673514,1739987442781,-694.37,0.0001104,2]
[353673516,1739987442791,-928.72,0.0001104,2]
[353673518,1739987442800,-500.0,0.0001104,2]
[353673520,1739987442809,-1114.04,0.0001104,2]
[353673522,1739987442819,-1600.63,0.0001104,2]
[353673524,1739987442828,-515.12,0.0001104,2]
[353673526,1739987442838,-1097.96,0.0001104,2]
[353673528,1739987442847,-4182.8,0.0001104,2]
[353673530,1739987442856,-874.82,0.0001104,2]
[353673532,1739987442866,-500.0,0.0001104,2]
[353673534,1739987442876,-614.0,0.0001104,2]
[353673536,1739987442886,-1336.31,0.0001104,2]
[353673538,1739987442895,-1114.28,0.0001104,2]
[353673540,1739987442905,-500.0,0.0001104,2]
[353673542,1739987442914,-1345.04,0.0001104,2]
[353673544,1739987442924,-1022.6,0.0001104,2]
[353673546,1739987442934,-500.0,0.0001104,2]
[353673548,1739987442943,-500.0,0.0001104,2]
[353673551,1739987442952,-155.548872,0.0001104,2]
[353673554,1739987442961,-1414.34,0.0001104,2]
[353673556,1739987442971,-593.78,0.0001104,2]
[353673559,1739987442981,-1153.26,0.0001104,2]
[353673563,1739987442991,-701.17,0.0001104,2]
[353673565,1739987443001,-500.0,0.0001104,2]
[353673568,1739987443011,-500.0,0.00011041,2]
[353673570,1739987443020,-500.0,0.00011041,2]
[353673572,1739987443029,-500.0,0.00011041,2]
[353673574,1739987443039,-500.0,0.00011041,2]
[353673578,1739987443048,-500.0,0.00011041,2]
[353673581,1739987443058,-500.0,0.00011041,2]
[353673584,1739987443067,-500.0,0.00011041,2]
[353673587,1739987443076,-500.0,0.00011041,2]
[353673589,1739987443086,-500.0,0.00011041,2]
[353673591,1739987443095,-500.0,0.00011041,2]
[353673593,1739987443105,-500.0,0.00011041,2]
[353673595,1739987443116,-500.0,0.00011041,2]
[353673597,1739987443125,-500.0,0.00011041,2]
[353673599,1739987443135,-500.0,0.00011041,2]
[353673601,1739987443144,-500.0,0.00011041,2]
[353673603,1739987443153,-500.0,0.00011041,2]
[353673605,1739987443162,-500.0,0.00011041,2]
[353673607,1739987443172,-500.0,0.00011041,2]
[353673609,1739987443181,-500.0,0.00011041,2]
[353673611,1739987443191,-500.0,0.00011041,2]
[353673613,1739987443200,-500.0,0.00011041,2]
[353673615,1739987443210,-500.0,0.00011041,2]
[353673617,1739987443219,-500.0,0.00011041,2]
[353673619,1739987443228,-500.0,0.00011041,2]
[353673621,1739987443237,-493.38970131,0.00011041,2]
[353673623,1739987443247,-516.92,0.00011041,2]
[353673625,1739987443256,-500.0,0.00011041,2]
[353673627,1739987443267,-500.0,0.00011041,2]
[353673629,1739987443278,-500.0,0.00011041,2]
[353673631,1739987443288,-500.0,0.00011041,2]
[353673632,1739987443297,-500.0,0.00011041,2]
[353673633,1739987443307,-500.0,0.00011041,2]
[353673634,1739987443317,-500.0,0.00011041,2]